Cogmind - Beta 13 X1 @@@ ROGUE MODE // 2023.08.18 @ 04:56:29 // Winter2022/Polymind Player: cptwinky Result: Destroyed by P-80 Master with Gamma Rifle Performance ------------- Evolutions (9) 4500 Regions Visited (17) 3400 Robots Destroyed (87) 435 Value Destroyed (4553) 4553 Prototype IDs (1) 20 Alien Tech Used (0) 0 Bonus (9351) 9351 TOTAL SCORE: 21959 Bonus ------- Polymind Skill 7706 High Alert Combat Kills 214 Follower Combat Kills 508 Entered DSFs 500 Scanned by Researcher 500 Friendly Fire -77 Cogmind --------- Core Integrity 0/1600 Matter 0/0 Energy 190/190 System Corruption 21% Temperature Warm (108) Movement Rolling (100) Location -1/Access Parts ------- > --- POWER (1) -------- Improved Ion Engine > --- PROPULSION (4) --- Compact Wheel Compact Wheel > --- UTILITY (3) ------ Medium Storage Unit Field Recycling Unit > --- WEAPON (0) ------- (None) > --- INVENTORY (6) ---- Gyrokinetic Inverter Gyrokinetic Inverter Gyrokinetic Inverter Peak State ------------ > --- POWER ------------ Reinforced Quantum Reactor > --- PROPULSION ------- Armored Heavy Treads Armored Heavy Treads > --- UTILITY ---------- Advanced Heat Sink Advanced Cooling System Enhanced Optical Array Active Sensor Suite Advanced Targeting Computer Improved Kinecellerator Advanced Weapon Cycler Advanced Transmission Jammer Layered Heavy Armor Plating Graphene Brace EM Disruption Field Improved Dynamic Insulation System > --- WEAPON ----------- Heavy Linear Accelerator > --- INVENTORY -------- (None) [Rating: 154] Favorites ----------- Power Subdweller Power Source Engine Subdweller Power Source Power Core Micro Nuclear Core Reactor Reinforced Quantum Reactor Propulsion Light Treads Treads Light Treads Leg Biometal Leg Wheel Wheel Hover Unit Gravmag System Flight Unit Xenon Bombardment Thruster Utility Improved Heat Sink Device Improved Heat Sink Storage Small Battery Processor Advanced Targeting Computer Hackware Hacking Suite Protection Scrap Shield Weapon Subdweller Machine Gun Energy Gun Gatling Laser Energy Cannon Nova Cannon Ballistic Gun Subdweller Machine Gun Ballistic Cannon Heavy Linear Accelerator Special Weapon Remote Datajack Impact Weapon Hammer Special Melee Weapon Advanced Datajack Build | -11 -10 -10 -8 -7 -6 -6 -6 -5 -5 -4 -4 -4 -3 -3 -2 -2 -1 ------- Run | Jun Mat Sub Mat Fac Fac Low Low Fac Ext Fac Upp Upp Res DSF Res Tes Acc Slots Evolved . | . . . . . . . . . . . . . . . . . . Power . | . . . . . . . . . . . . . . . . . . Propulsion . | . . . . . . . . . . . . . . . . . . Utility . | . . . . . . . . . . . . . . . . . . Weapon . | . . . . . . . . . . . . . . . . . . Parts Attached . | . . . . . . . . . . . . . . . . . . Power . | . . . . . . . . . . . . . . . . . . Engine . | . . . . . . . . . . . . . . . . . . Core . | . . . . . . . . . . . . . . . . . . Reactor . | . . . . . . . . . . . . . . . . . . Propulsion . | . . . . . . . . . . . . . . . . . . Treads . | . . . . . . . . . . . . . . . . . . Leg . | . . . . . . . . . . . . . . . . . . Wheel . | . . . . . . . . . . . . . . . . . . Hover . | . . . . . . . . . . . . . . . . . . Flight . | . . . . . . . . . . . . . . . . . . Utility . | . . . . . . . . . . . . . . . . . . Device . | . . . . . . . . . . . . . . . . . . Storage . | . . . . . . . . . . . . . . . . . . Processor . | . . . . . . . . . . . . . . . . . . Hackware . | . . . . . . . . . . . . . . . . . . Protection . | . . . . . . . . . . . . . . . . . . Artifact . | . . . . . . . . . . . . . . . . . . Weapon . | . . . . . . . . . . . . . . . . . . Energy Gun . | . . . . . . . . . . . . . . . . . . Energy Cannon . | . . . . . . . . . . . . . . . . . . Ballistic Gun . | . . . . . . . . . . . . . . . . . . Ballistic Cannon . | . . . . . . . . . . . . . . . . . . Launcher . | . . . . . . . . . . . . . . . . . . Special Weapon . | . . . . . . . . . . . . . . . . . . Impact Weapon . | . . . . . . . . . . . . . . . . . . Slashing Weapon . | . . . . . . . . . . . . . . . . . . Piercing Weapon . | . . . . . . . . . . . . . . . . . . Special Melee Weapon . | . . . . . . . . . . . . . . . . . . Unidentified Prototypes . | . . . . . . . . . . . . . . . . . . Parts Lost 97 | . . 4 5 3 5 . . 3 3 14 . . . 1 21 5 33 Power 10 | . . 1 1 . . . . 1 . 2 . . . . 2 . 3 Propulsion 35 | . . 1 2 1 2 . . 1 2 6 . . . . 5 1 14 Utility 25 | . . 1 2 1 1 . . . 1 1 . . . . 10 2 6 Weapon 27 | . . 1 . 1 2 . . 1 . 5 . . . 1 4 2 10 Highest Loss Streak 14 | . . 3 4 2 3 . . 3 3 6 . . . 1 10 3 14 To Critical Strikes 1 | . . . . . . . . . . . . . . . 1 . . Average Slot Usage (%) 80 | . 10 80 82 96 92 100 100 68 77 73 80 100 100 100 73 67 71 Engine 8 | . 1 10 14 11 9 20 14 . 3 8 12 16 16 16 3 . 2 Core 1 | . . . . 2 3 . 7 12 6 2 . . . . . . . Reactor 1 | . . . . . . . . . . . . . . . 5 4 5 Treads 6 | . . 7 2 16 16 . . . 12 . . . . . 5 8 . Wheel 9 | . . 9 12 2 2 40 28 . 8 . 26 33 33 33 5 . 3 Hover 3 | . 3 . . 4 3 . . . . 18 . . . . . . 11 Flight 1 | . . . . 3 . . 15 40 7 . . . . . . . 8 Device 22 | . 1 26 24 19 23 20 14 . 14 5 26 33 33 33 28 36 10 Processor 3 | . 3 . . 2 4 20 14 . . 10 . . . . 5 8 3 Protection 6 | . . 10 13 8 7 . . . 6 . . . . . 5 2 . Energy Gun 3 | . . . . 11 10 . . . 6 11 . . . . . . 6 Ballistic Gun 7 | . . 13 12 9 7 . 7 15 6 . . . . . 5 . 2 Special Melee Weapon 1 | . . . . . . . . . . 2 12 16 16 16 . . 2 Naked Turns 402 | . 175 1 2 9 1 . . . . 13 64 . . . . 26 111 Heaviest Build 96 | . 4 30 30 23 23 6 8 8 33 21 11 11 11 11 96 96 29 Greatest Support 120 | 3 12 40 40 40 40 20 20 8 64 22 20 20 20 20 120 120 64 Greatest Overweight (x) 9 | . . 9 9 . 3 . . . 1 1 . . . . 2 1 3 Average Overweight (x) . | . . 3 4 . . . . . . . . . . . . . . Largest Inventory Capacity 12 | . . 2 2 5 12 12 12 . 6 5 10 10 10 10 10 1 6 Average Capacity 2 | . . 1 1 1 2 12 8 . 1 1 7 10 10 10 2 . 2 Most Carried 12 | . . 2 1 . 12 12 10 . 3 . 8 8 7 7 7 . 3 Average Carried 1 | . . . . . . 10 7 . . . 6 7 7 7 . . . Final Capacity 12 | . . 2 . 5 12 12 . . . . 10 10 10 10 1 . 6 Final Carried 12 | . . 1 . . 12 10 . . . . 8 7 7 7 . . 3 Class Distribution -------------------- 23% | Subdweller 21% | Sentry 8% | Programmer 8% | Heavy 7% | Minesweeper 6% | Mechanic 4% | Swarmer 4% | Operator 3% | Behemoth 3% | Cogmind Dominant Class ---------------- Cogmind | -10/Materials Subdweller | -10/Subcaves Subdweller | -8/Materials Sentry | -7/Factory Sentry | -6/Factory Mechanic | -6/Lower Caves Mechanic | -6/Lower Caves Swarmer | -5/Factory Sentry | -5/Extension Operator | -4/Factory Minesweeper | -4/Upper Caves Minesweeper | -4/Upper Caves Minesweeper | -3/Research Minesweeper | -3/DSF Behemoth | -2/Research Heavy | -2/Testing Programmer | -1/Access Resources | -11 -10 -10 -8 -7 -6 -6 -6 -5 -5 -4 -4 -4 -3 -3 -2 -2 -1 ----------- Run | Jun Mat Sub Mat Fac Fac Low Low Fac Ext Fac Upp Upp Res DSF Res Tes Acc Matter Collected 1260 | . . 92 15 89 30 . . 29 32 . . . . 15 749 179 30 Remotely . | . . . . . . . . . . . . . . . . . . Salvage Created 4527 | . . 327 157 187 156 . . . 232 200 . . . . 2683 217 368 Parts 175 | . . 31 13 11 7 . . . 1 9 . . . . 89 5 9 Haulers Intercepted 1 | . . . . . . . . . . . . . . . 1 . . Recyclers Shooed 4 | . . . . . . . . . . . . . . . 4 . . Parts Field Recycled . | . . . . . . . . . . . . . . . . . . Retrieved Matter . | . . . . . . . . . . . . . . . . . . Parts Self-Destructed 17 | . . 7 . . . 3 4 . . . 3 . . . . . . Prevented 11 | . . . . . . . 5 . . . 3 3 . . . . . Kills | -11 -10 -10 -8 -7 -6 -6 -6 -5 -5 -4 -4 -4 -3 -3 -2 -2 -1 ------- Run | Jun Mat Sub Mat Fac Fac Low Low Fac Ext Fac Upp Upp Res DSF Res Tes Acc Combat Hostiles Destroyed 69 | . . 8 6 8 4 . . . 4 1 . . . . 28 4 6 Melee 1 | . . . 1 . . . . . . . . . . . . . . Guns 36 | . . 8 4 8 3 . . . 3 1 . . . . 7 . 2 Cannons 22 | . . . . . . . . . . . . . . . 18 4 . AOE 4 | . . . . . 1 . . . . . . . . . . . 3 Classes Destroyed 16 | . . 5 1 2 1 . . . . 2 . . . . 4 1 . Worker 3 | . . . . 1 . . . . . . . . . . 2 . . Builder 1 | . . . . . . . . . . 1 . . . . . . . Hauler 1 | . . . . . . . . . . . . . . . 1 . . Recycler 1 | . . . . . . . . . . . . . . . 1 . . Operator 3 | . . . . . . . . . . 2 . . . . 1 . . Watcher 6 | . . 1 1 . . . . . . 1 . . . . 2 . 1 Swarmer 14 | . . . 3 4 2 . . . 1 . . . . . . . 4 Grunt 18 | . . . . 3 . . . . 1 . . . . . 10 2 2 Researcher 1 | . . . . . . . . . . . . . . . . 1 . Sentry 7 | . . 1 2 1 . . . . 2 . . . . . 1 . . Hunter 4 | . . . . . . . . . . . . . . . 4 . . Programmer 17 | . . . . . 2 . . . . 1 . . . . 12 2 . Behemoth 1 | . . . . . . . . . . . . . . . 1 . . Artisan 1 | . . 1 . . . . . . . . . . . . . . . Subdweller 8 | . . 7 1 . . . . . . . . . . . . . . Zionite 2 | . . 2 . . . . . . . . . . . . . . . Best Kill Streak 6 | . . 1 4 2 1 . . . 3 2 . . . . 6 2 3 Combat Bots Only 6 | . . 1 4 2 1 . . . 3 1 . . . . 6 2 3 Max Kills in Single Turn 3 | . . 1 1 1 1 . . . 2 1 . . . . 2 1 3 Gunslinging . | . . . . . . . . . . . . . . . . . . Exploded 3 | . . . . . 1 . . . . . . . . . . . 3 Melee 1 | . . . 1 . . . . . . . . . . . . . . Uniques/NPCs Destroyed . | . . . . . . . . . . . . . . . . . . Combat | -11 -10 -10 -8 -7 -6 -6 -6 -5 -5 -4 -4 -4 -3 -3 -2 -2 -1 -------- Run | Jun Mat Sub Mat Fac Fac Low Low Fac Ext Fac Upp Upp Res DSF Res Tes Acc Damage Taken 20011 | . 12 940 1290 861 484 35 81 299 604 1446 . . . 126 5833 3496 4504 Core 4841 | . 10 186 345 198 133 25 44 122 241 621 . . . 22 773 491 1630 Absorbed by Shields . | . . . . . . . . . . . . . . . . . . Reduced by Siege Mode 148 | . . . . . . . . . . . . . . . 148 . . Redirected to Shielding 102 | . . . . . . . . . . . . . . . 102 . . Ignored by Resistances 2445 | . . . . . 66 . . . . 93 . . . . 696 208 1382 Core Remaining (%) 58 | 100 . 21 37 71 . . 76 . 63 . . 46 . 98 . 12 . Volleys Fired 370 | . . 48 19 22 13 . 2 4 7 19 . . . . 163 20 53 Largest 3 | . . 2 1 2 2 . 1 1 2 2 . . . . 3 2 2 Hottest 157 | . . 79 30 108 108 . 23 23 114 125 . . . . 113 157 150 Shots Fired 495 | . . 54 19 38 21 . 2 4 14 32 . . . . 200 25 86 Gun 347 | . . 54 19 38 21 . 2 4 14 32 . . . . 73 4 86 Cannon 148 | . . . . . . . . . . . . . . . 127 21 . Launcher . | . . . . . . . . . . . . . . . . . . Special . | . . . . . . . . . . . . . . . . . . Kinetic 227 | . . 48 19 22 5 . 2 4 7 . . . . . 85 21 14 Thermal 157 | . . 6 . 16 5 . . . 7 4 . . . . 115 4 . Explosive . | . . . . . . . . . . . . . . . . . . Electromagnetic 111 | . . . . . 11 . . . . 28 . . . . . . 72 Robot Hit Streak 22 | . . 22 5 18 12 . 1 . 10 11 . . . . 21 13 13 Robot Miss Streak 7 | . . 2 2 6 5 . 1 . 2 2 . . . . 7 2 3 Penetration Max 1 | . . . . . . . . . 1 . . . . . 1 . . Secondary Targets 2 | . . 1 . . . . . . . . . . . . . . 1 Max Gunslinging Chain 1 | . . 1 . . . . . . . . . . . . . . 1 Capacitor 115 | . . . . . . . . . . . . . . . 115 . . Shots Hit Robots 358 | . . 42 23 34 17 . 1 . 12 17 1 . . . 137 16 58 Core Hits 173 | . . 17 8 34 11 . . . 6 7 . . . . 63 6 21 Critical Kills 4 | . . 1 . . . . . . . . . . . . 3 . . Critical Parts Destroyed 4 | . . . 1 . . . . . . . . . . . 3 . . Critical Strikes 14 | . . 3 1 . . . . . . 1 . . . . 7 . 2 Meltdown 1 | . . . . . . . . . . . . . . . 1 . . Destroy 9 | . . 3 1 . . . . . . . . . . . 5 . . Blast 1 | . . . . . . . . . . . . . . . 1 . . Corrupt 3 | . . . . . . . . . . 1 . . . . . . 2 Melee Attacks 14 | . . . 12 . . . . . . . 1 . . . . . 1 Impact 12 | . . . 12 . . . . . . . . . . . . . . Slashing . | . . . . . . . . . . . . . . . . . . Piercing . | . . . . . . . . . . . . . . . . . . Sneak Attacks 3 | . . . 1 . . . . . . . 1 . . . . . 1 Combat Hostiles 1 | . . . 1 . . . . . . . . . . . . . . Follow-up Attacks . | . . . . . . . . . . . . . . . . . . Damage Inflicted 11890 | . 5 744 643 726 331 . 19 17 443 319 . . . . 5959 1208 1476 Guns 5540 | . . 744 335 720 331 . 14 17 443 319 . . . . 1506 96 1015 Cannons 5376 | . . . . . . . . . . . . . . . 4378 998 . Explosions 439 | . . . . . . . . . . . . . . . . . 439 Melee 305 | . . . 305 . . . . . . . . . . . . . . Ramming 230 | . 5 . 3 6 . . 5 . . . . . . . 75 114 22 Kinetic 5466 | . . 655 335 340 49 . 14 17 289 . . . . . 2497 998 272 Thermal 4724 | . . 89 . 380 159 . . . 154 33 . . . . 3387 96 426 Explosive . | . . . . . . . . . . . . . . . . . . Electromagnetic 1165 | . . . . . 123 . . . . 286 . . . . . . 756 Impact 305 | . . . 305 . . . . . . . . . . . . . . Slashing . | . . . . . . . . . . . . . . . . . . Piercing . | . . . . . . . . . . . . . . . . . . Highest Corruption 20 | . . . . 1 10 10 10 . . 2 2 2 . . 4 8 20 Average Corruption 5 | . . . . 1 5 10 10 . . 1 2 2 . . 2 6 7 Corruption Purged 1 | . . . . . . . . . . . . . . . . . 1 Corruption Blocked . | . . . . . . . . . . . . . . . . . . Effects 97 | . . . . 4 5 16 1 . . 5 5 4 . . 23 16 18 Message Errors 29 | . . . . 2 . 5 1 . . 3 3 1 . . 6 4 4 Matter Fused 13 | . . . . . 2 . . . . . . 1 . . 4 5 1 Heat Flow Errors 13 | . . . . . 1 3 . . . . 1 1 . . 4 1 2 Energy Discharges 8 | . . . . 1 . . . . . . . . . . 4 1 2 Parts Fused 1 | . . . . . . . . . . . . . . . . . 1 Data Loss (minor) 17 | . . . . . 1 3 . . . 1 1 1 . . 3 2 5 Data Loss (major) 6 | . . . . 1 1 3 . . . . . . . . 1 . . Misfires 3 | . . . . . . . . . . . . . . . . 3 . Alerts 3 | . . . . . . 1 . . . 1 . . . . 1 . . Misdirections 1 | . . . . . . 1 . . . . . . . . . . . Weapon Failures 3 | . . . . . . . . . . . . . . . . . 3 Overload Shots . | . . . . . . . . . . . . . . . . . . Overflow Damage 527 | . . . 52 . . . . . . . . . . . 272 113 90 Projectiles 385 | . . . . . . . . . . . . . . . 272 113 . Explosions 90 | . . . . . . . . . . . . . . . . . 90 Melee 52 | . . . 52 . . . . . . . . . . . . . . Knockbacks 9 | . . . 2 . . . . . . . . . . . 3 4 . Impact 3 | . . . 2 . . . . . . . . . . . 1 . . Kinetic 5 | . . . . . . . . . . . . . . . 1 4 . Secondary 1 | . . . . . . . . . . . . . . . 1 . . Self-Inflicted Damage 195 | . 2 . . . . . 2 . . . . . . . . 97 94 Shots 4 | . . . . . . . . . . . . . . . . 2 2 Rammed 30 | . 1 . 2 2 . . 1 . . . . . . . 2 17 5 Targets Rammed 41 | . 1 . 2 2 . . 1 . . . . . . . 13 17 5 Kicked 11 | . . . . . . . . . . . . . . . 11 . . Crushed . | . . . . . . . . . . . . . . . . . . Highest Temperature 499 | . . 1 155 217 151 226 24 14 41 84 282 123 . 1 254 499 249 Average Temperature 74 | . . 1 49 73 33 87 11 10 20 32 147 63 . 1 68 124 107 Received Heat Transfer 1974 | . 6 48 450 264 36 15 24 48 75 9 . . . 9 306 378 306 Effects 1 | . . . . . . . . . . . . . . . . . 1 Energy Bleed 1 | . . . . . . . . . . . . . . . . . 1 Siege Activations 5 | . . . . . . . . . . . . . . . 5 . . Total Turns 216 | . . . . . . . . . . . . . . . 216 . . Longest Duration 161 | . . . . . . . . . . . . . . . 161 . . Robots Corrupted 3 | . . . . . . . . . . 2 . . . . . . 1 Combat Hostiles 1 | . . . . . . . . . . . . . . . . . 1 Parts Fried 10 | . . . . . 1 . . . . 6 . . . . . . 3 Impact Corruptions 4 | . . . 4 . . . . . . . . . . . . . . Robots Melted 3 | . . . . . . . . . . . . . . . 3 . . Combat Hostiles 3 | . . . . . . . . . . . . . . . 3 . . Parts Melted 22 | . . . . . 2 . . . 5 . . . . . 15 . . Heat Transferred 4801 | . . 222 . 800 275 . . . 222 74 . . . . 2960 148 100 Parts Sabotaged . | . . . . . . . . . . . . . . . . . . Parts Stolen . | . . . . . . . . . . . . . . . . . . Parts Stripped . | . . . . . . . . . . . . . . . . . . Power Chain Reactions . | . . . . . . . . . . . . . . . . . . Missiles Intercepted . | . . . . . . . . . . . . . . . . . . Alert | -11 -10 -10 -8 -7 -6 -6 -6 -5 -5 -4 -4 -4 -3 -3 -2 -2 -1 ------- Run | Jun Mat Sub Mat Fac Fac Low Low Fac Ext Fac Upp Upp Res DSF Res Tes Acc Peak Influence 711 | . 21 . 401 305 121 . . 139 479 233 . . . 5 458 650 711 Initial 386 | . . . . 182 65 . . 7 65 165 . . . . 2 257 386 Average 205 | . 10 . 54 160 61 . . 72 307 109 . . . . 187 459 455 Maximum Alert Level 3 | . . . 2 1 . . . . 2 1 . . . . 2 2 3 Low Security (%) 53 | . 100 . 88 69 100 . . 100 17 77 . . 100 100 42 . 3 Level 1 29 | . . . 10 30 . . . . 61 22 . . . . 53 26 25 Level 2 16 | . . . . . . . . . 21 . . . . . 3 73 66 Level 3 . | . . . . . . . . . . . . . . . . . 4 Level 4 . | . . . . . . . . . . . . . . . . . . Level 5 . | . . . . . . . . . . . . . . . . . . High Security . | . . . . . . . . . . . . . . . . . . Max Security . | . . . . . . . . . . . . . . . . . . Sterilizations 1 | . . . . . . . . . . . . . . 1 . . . Squads Dispatched 32 | . . . 1 6 1 . . 1 2 2 . . . . 5 7 7 Investigation 8 | . . . . 1 . . . 1 1 . . . . . 1 3 1 Extermination 11 | . . . . 2 1 . . . . 1 . . . . 3 1 3 Reinforcement 8 | . . . . . . . . . 1 1 . . . . 1 2 3 Assault 1 | . . . . . . . . . . . . . . . . 1 . Garrison 4 | . . . 1 3 . . . . . . . . . . . . . Intercept . | . . . . . . . . . . . . . . . . . . Searches Triggered 3 | . . . . . . . . . . . . . . . . . 3 Construction Impeded . | . . . . . . . . . . . . . . . . . . Haulers Reinforced . | . . . . . . . . . . . . . . . . . . Active Scanning Responses 3 | . . . . . . . . . . . . . . . 1 2 . Cargo Convoy Interrupts . | . . . . . . . . . . . . . . . . . . Stealth | -11 -10 -10 -8 -7 -6 -6 -6 -5 -5 -4 -4 -4 -3 -3 -2 -2 -1 --------- Run | Jun Mat Sub Mat Fac Fac Low Low Fac Ext Fac Upp Upp Res DSF Res Tes Acc Distress Signals 13 | . 1 . 4 . . . 1 2 1 . . . . . 3 . 1 Communications Jammed 64 | . . . . . . . . . . . . . . . . 64 . Distress Signals 64 | . . . . . . . . . . . . . . . . 64 . Times Spotted 332 | . 5 11 51 20 11 . 11 15 17 16 . . . 1 38 40 96 Peak Tracking Total 16 | . 3 2 16 4 3 . 6 12 5 5 . . . 1 7 16 15 Tactical Retreats 25 | . . . 2 4 1 . 1 1 1 . . . . . 2 3 10 Traps | -11 -10 -10 -8 -7 -6 -6 -6 -5 -5 -4 -4 -4 -3 -3 -2 -2 -1 ------- Run | Jun Mat Sub Mat Fac Fac Low Low Fac Ext Fac Upp Upp Res DSF Res Tes Acc Traps Triggered 12 | . . 3 . 1 4 . . . 1 . . . . . . . 3 Indirectly . | . . . . . . . . . . . . . . . . . . Trap Hack Attempts 107 | . . . . . . . . . . 84 . . . 23 . . . Triggered . | . . . . . . . . . . . . . . . . . . Disarmed 3 | . . . . . . . . . . 3 . . . . . . . Reprogrammed 8 | . . . . . . . . . . 6 . . . 2 . . . Reused 7 | . . 1 . . . . . . . 2 . 1 . . 3 . . Traps Extracted 1 | . . . . . . . . . . . . 1 . . . . . Installed 10 | . . 1 . . . . . . . . . 2 . . 7 . . Triggered 11 | . . . . . . . 4 . . 3 . 1 . . 3 . . Most Traps Carried 8 | . . 1 . . . . . . . . 8 8 7 7 7 . . Machines | -11 -10 -10 -8 -7 -6 -6 -6 -5 -5 -4 -4 -4 -3 -3 -2 -2 -1 ---------- Run | Jun Mat Sub Mat Fac Fac Low Low Fac Ext Fac Upp Upp Res DSF Res Tes Acc Machines Disabled 13 | . . . . . . . . . 2 1 . . . . 3 5 2 Max in Single Turn 2 | . . . . . . . . . . 1 . . . . 1 2 1 Energy Cycler 1 | . . . . . . . . . . . . . . . . . 1 Machines Repaired . | . . . . . . . . . . . . . . . . . . Machines Sabotaged . | . . . . . . . . . . . . . . . . . . Overloaded Fab Kills . | . . . . . . . . . . . . . . . . . . Hacking | -11 -10 -10 -8 -7 -6 -6 -6 -5 -5 -4 -4 -4 -3 -3 -2 -2 -1 --------- Run | Jun Mat Sub Mat Fac Fac Low Low Fac Ext Fac Upp Upp Res DSF Res Tes Acc Machines Accessed 32 | . 1 . 2 4 1 . . 2 6 5 . . 1 . 3 3 4 Terminals 23 | . 1 . 1 4 . . . 2 6 2 . . 1 . 2 1 3 Fabricators 2 | . . . . . . . . . . 1 . . . . . 1 . Repair Stations 4 | . . . 1 . 1 . . . . 2 . . . . . . . Recycling Units . | . . . . . . . . . . . . . . . . . . Scanalyzers . | . . . . . . . . . . . . . . . . . . Garrison Access 3 | . . . . . . . . . . . . . . . 1 1 1 Total Hacks 68 | . 2 . 7 9 1 . . 3 14 13 . . 1 . 6 4 8 Successful 23 | . 2 . 5 2 1 . . . 3 5 . . 1 . 2 1 1 Failed 45 | . . . 2 7 . . . 3 11 8 . . . . 4 3 7 Catastrophic 16 | . . . 1 2 . . . 1 3 3 . . . . 1 3 2 Database Lockouts . | . . . . . . . . . . . . . . . . . . Manual 35 | . 2 . 5 6 1 . . 2 6 7 . . . . 2 . 4 Terminals 54 | . 2 . 5 9 . . . 3 14 8 . . 1 . 5 1 6 Fabricators 3 | . . . . . . . . . . 2 . . . . . 1 . Repair Stations 6 | . . . 2 . 1 . . . . 3 . . . . . . . Recycling Units . | . . . . . . . . . . . . . . . . . . Scanalyzers . | . . . . . . . . . . . . . . . . . . Garrison Access 5 | . . . . . . . . . . . . . . . 1 2 2 Terminal Hacks 13 | . 2 . 3 1 . . . . 2 1 . . 1 . 1 1 1 Robot Analysis 2 | . 1 . 1 . . . . . . . . . . . . . . Open Door 1 | . . . . . . . . . 1 . . . . . . . . Open DSF 2 | . . . . 1 . . . . . . . . 1 . . . . Branch Access Points 2 | . . . 1 . . . . . . . . . . . . . 1 Locate Traps 4 | . . . . . . . . . 1 1 . . . . 1 1 . Zone Layout 2 | . 1 . 1 . . . . . . . . . . . . . . Fabricator Hacks 1 | . . . . . . . . . . 1 . . . . . . . Network Status 1 | . . . . . . . . . . 1 . . . . . . . Repair Station Hacks 2 | . . . . . . . . . . 2 . . . . . . . Refit 2 | . . . . . . . . . . 2 . . . . . . . Recycling Unit Hacks . | . . . . . . . . . . . . . . . . . . Scanalyzer . | . . . . . . . . . . . . . . . . . . Garrison Access Hacks . | . . . . . . . . . . . . . . . . . . Unauthorized Hacks 7 | . . . 2 1 1 . . . 1 1 . . . . 1 . . Terminals 4 | . . . 1 1 . . . . 1 . . . . . 1 . . Botnet 2 | . . . . 1 . . . . . . . . . . 1 . . Disrupt 2 | . . . 1 . . . . . 1 . . . . . . . . Fabricators 1 | . . . . . . . . . . 1 . . . . . . . Liberate 1 | . . . . . . . . . . 1 . . . . . . . Repair Stations 2 | . . . 1 . 1 . . . . . . . . . . . . Mechanics 2 | . . . 1 . 1 . . . . . . . . . . . . Recycling Units . | . . . . . . . . . . . . . . . . . . Scanalyzers . | . . . . . . . . . . . . . . . . . . Garrison Access . | . . . . . . . . . . . . . . . . . . Data Cores Recovered 1 | . . . . . . . . . . . . . . . 1 . . Used . | . . . . . . . . . . . . . . . . . . Hacking Detections 27 | . 1 . 2 4 . . . 2 5 4 . . . . 3 2 4 Full Trace Events 5 | . . . . 1 . . . 1 1 . . . . . . 1 1 Feedback Events 1 | . . . . . . . . . . . . . . . . 1 . Corruption 1 | . . . . . . . . . . . . . . . . 1 . Feedback Blocked . | . . . . . . . . . . . . . . . . . . Robot Schematics Acquired . | . . . . . . . . . . . . . . . . . . Robots Built . | . . . . . . . . . . . . . . . . . . Authchips . | . . . . . . . . . . . . . . . . . . Time . | . . . . . . . . . . . . . . . . . . Total Robot Build Rating . | . . . . . . . . . . . . . . . . . . Part Schematics Acquired . | . . . . . . . . . . . . . . . . . . Parts Built . | . . . . . . . . . . . . . . . . . . Authchips . | . . . . . . . . . . . . . . . . . . Time . | . . . . . . . . . . . . . . . . . . Total Part Build Rating . | . . . . . . . . . . . . . . . . . . Parts Repaired . | . . . . . . . . . . . . . . . . . . Time . | . . . . . . . . . . . . . . . . . . Parts Recycled . | . . . . . . . . . . . . . . . . . . Recycled Matter . | . . . . . . . . . . . . . . . . . . Retrieved Matter . | . . . . . . . . . . . . . . . . . . Retrieved Components . | . . . . . . . . . . . . . . . . . . Parts Scanalyzed . | . . . . . . . . . . . . . . . . . . Part Schematics Acquired . | . . . . . . . . . . . . . . . . . . Parts Damaged . | . . . . . . . . . . . . . . . . . . Bothacking | -11 -10 -10 -8 -7 -6 -6 -6 -5 -5 -4 -4 -4 -3 -3 -2 -2 -1 ------------ Run | Jun Mat Sub Mat Fac Fac Low Low Fac Ext Fac Upp Upp Res DSF Res Tes Acc Used RIF Installer . | . . . . . . . . . . . . . . . . . . Robots Hacked 29 | . 1 1 3 3 1 . 1 . 3 2 1 . . . 3 1 9 Non-combat 10 | . 1 . . 1 1 . . . 2 1 1 . . . . . 3 Combat 19 | . . 1 3 2 . . 1 . 1 1 . . . . 3 1 6 Robot Hacks Applied 45 | . 2 1 6 5 1 . 1 . 3 3 1 . . . 5 2 15 parse_system 1 | . . . . . . . . . . . 1 . . . . . . no_distress 1 | . . . . . . . . . . . . . . . . . 1 find_chute 1 | . . . . 1 . . . . . . . . . . . . . find_recycling 2 | . . . . . . . . . 1 . . . . . . . 1 find_station 1 | . . . . . 1 . . . . . . . . . . . . find_terminals 2 | . . . . . . . . . . 1 . . . . . . 1 map_route 1 | . 1 . . . . . . . . . . . . . . . . mark_security 2 | . 1 . . . . . . . 1 . . . . . . . . find_shortcuts 19 | . . 1 3 2 . . 1 . 1 1 . . . . 3 1 6 find_garrison 15 | . . . 3 2 . . . . . 1 . . . . 2 1 6 Relay Couplers Released 3 | . . . . . . . . . . . . . . . 3 . . Programmers 3 | . . . . . . . . . . . . . . . 3 . . Fabnet Peak Effective % . | . . . . . . . . . . . . . . . . . . Robots Rewired 11 | . . . . . . 1 . 1 8 . . . . . . . 1 Allies Hacked 1 | . . . . . . . . . . . . . . . . . 1 Hacks Repelled . | . . . . . . . . . . . . . . . . . . Allies | -11 -10 -10 -8 -7 -6 -6 -6 -5 -5 -4 -4 -4 -3 -3 -2 -2 -1 -------- Run | Jun Mat Sub Mat Fac Fac Low Low Fac Ext Fac Upp Upp Res DSF Res Tes Acc Total Allies 14 | . . . . . 3 1 . 1 8 . . . . . . . 1 Largest Group 8 | . . . . . 1 1 . 1 8 . . . . . . . 1 Highest-Rated Group 242 | . . . . . 32 32 . 29 242 . . . . . . . 58 Highest-Rated Ally 58 | . . . . . 32 32 . 29 39 . . . . . . . 58 Total Orders 2 | . . . . . 2 . . . . . . . . . . . . STAY 1 | . . . . . 1 . . . . . . . . . . . . FOLLOW 1 | . . . . . 1 . . . . . . . . . . . . Ally Attacks 80 | . . . . . . 4 . 7 68 . . . . . . . 1 Total Damage 1467 | . . . . . . 158 . 115 1149 . . . . . . . 45 Kills 17 | . . . . . . 1 . 2 13 . . . . . . . 1 Allies Corrupted . | . . . . . . . . . . . . . . . . . . Allies Melted . | . . . . . . . . . . . . . . . . . . Intel | -11 -10 -10 -8 -7 -6 -6 -6 -5 -5 -4 -4 -4 -3 -3 -2 -2 -1 ------- Run | Jun Mat Sub Mat Fac Fac Low Low Fac Ext Fac Upp Upp Res DSF Res Tes Acc Robot Analysis Total 25 | . 2 2 3 3 1 . 1 . 3 2 1 . . . 3 1 3 Derelict Logs Recovered 7 | . . 3 . . . 2 1 . . . 1 . . . . . . Drone Launches . | . . . . . . . . . . . . . . . . . . Drone Recoveries . | . . . . . . . . . . . . . . . . . . Exploration | -11 -10 -10 -8 -7 -6 -6 -6 -5 -5 -4 -4 -4 -3 -3 -2 -2 -1 ------------- Run | Jun Mat Sub Mat Fac Fac Low Low Fac Ext Fac Upp Upp Res DSF Res Tes Acc Turns Passed 11663 | . 191 3131 725 1058 675 607 97 83 658 849 305 275 7 120 1432 621 829 Spaces Moved 7199 | 1 145 1115 192 707 278 656 141 177 529 793 330 73 9 96 592 320 1045 Core 1439 | 1 122 371 106 13 18 . . . 140 240 126 . . . 11 52 239 Treads 1534 | . . 576 15 181 156 . . . 154 . . . . . 196 256 . Legs 165 | . . . . . . . . . . . . . . . 153 12 . Wheels 1691 | . . 116 . 56 29 656 71 . 106 . 204 73 9 96 232 . 43 Hover 1476 | . 23 52 . 305 75 . . . 26 553 . . . . . . 442 Flight 894 | . . . 71 152 . . 70 177 103 . . . . . . . 321 Fastest Speed 32 | 50 50 50 37 37 50 80 32 32 35 50 50 80 80 80 80 50 34 Average Speed 116 | 50 50 262 292 80 136 80 56 32 87 76 68 80 80 80 118 149 59 Slowest Speed 500 | 50 56 500 500 160 200 80 80 35 160 120 80 80 80 80 170 190 200 Overloaded Moves . | . . . . . . . . . . . . . . . . . . Propulsion Burnouts . | . . . . . . . . . . . . . . . . . . Robots Hopped 22 | . . . 2 1 . . 3 10 2 . . . . . . . 4 Cave-ins Triggered . | . . . . . . . . . . . . . . . . . . Exploration Rate (%) 30 | 2 28 72 37 22 7 62 18 8 56 15 39 6 1 80 21 44 30 Regions Visited 17 Branch Regions 7 Pre-discovered Areas 3 | . . 2 . . . . . . . . 1 . . . . . . Known Exits Taken 5 | . 1 . . . . . . 1 1 . . . 1 . 1 . . Unknown Exits Taken 11 | 1 . 1 1 1 1 1 1 . . 1 1 1 . . . 1 . Scrap Searched 2 | . . . . . . 1 . . . . 1 . . . . . . Spaces Dug 14 | . . . . . . . . . . . . . . . 7 7 . Terrain Destroyed 101 | . . . 2 . . . . . . . . . . . 24 46 29 Melee . | . . . . . . . . . . . . . . . . . . Projectile 34 | . . . 2 . . . . . . . . . . . 24 8 . AOE 67 | . . . . . . . . . . . . . . . . 38 29 Terrain Rammed . | . . . . . . . . . . . . . . . . . . Walls Destroyed . | . . . . . . . . . . . . . . . . . . Machines Disabled . | . . . . . . . . . . . . . . . . . . Actions | -11 -10 -10 -8 -7 -6 -6 -6 -5 -5 -4 -4 -4 -3 -3 -2 -2 -1 --------- Run | Jun Mat Sub Mat Fac Fac Low Low Fac Ext Fac Upp Upp Res DSF Res Tes Acc Total 9960 | . 261 1263 311 1137 528 739 153 187 711 989 409 289 8 138 1252 431 1154 Wait 2049 | . 116 90 87 391 211 44 13 12 117 79 79 214 . 20 468 63 45 Move 7142 | . 144 1114 187 704 277 655 134 159 525 792 329 72 8 95 591 319 1037 Hop 18 | . . . 2 1 . . 3 7 1 . . . . . . . 4 Pick Up 14 | . . 3 . . . 3 . . 2 . . . . . 3 . 3 Fast Attach . | . . . . . . . . . . . . . . . . . . Attach . | . . . . . . . . . . . . . . . . . . Detach . | . . . . . . . . . . . . . . . . . . Swap . | . . . . . . . . . . . . . . . . . . Drop 14 | . . 2 1 . . 3 . . . . . 1 . . 7 . . Fire 370 | . . 48 19 22 13 . 2 4 7 19 . . . . 163 20 53 Melee 14 | . . . 12 . . . . . . . 1 . . . . . 1 Ram 7 | . 1 . . . . . 1 . . . . . . . . . 5 Kick 11 | . . . . . . . . . . . . . . . 11 . . Crush 23 | . . . 2 2 . . . . . . . . . . 2 17 . Escape Stasis 28 | . . . . . . . . . 16 . . . . . . 12 . Rewire 70 | . . . . 1 3 22 . 5 39 . . . . . . . . Trap 117 | . . 1 . . . . . . . 84 . 2 . 23 7 . . Miscellaneous 83 | . . 5 1 16 24 12 . . 4 15 . . . . . . 6 Route ------- -11/Junkyard -10/Materials (discovered 3 exits: [*Mat] / [Min] / *Sub) -10/Subcaves -8/Materials -7/Factory -6/Factory -6/Lower Caves -6/Lower Caves -5/Factory -5/Extension -4/Factory -4/Upper Caves -4/Upper Caves -3/Research -3/DSF -2/Research -2/Testing -1/Access (discovered 1 exit: Com) History --------- Turn | Location | Event 1 | -11/Junkyard | Discovered new exit (range 0) 1 | -11/Junkyard | Entered Materials 15 | -10/Materials | Discovered new exit (range 11) 15 | -10/Materials | Discovered new exit (range 18) 15 | -10/Materials | Discovered new exit (range 18) 191 | -10/Materials | Identified exit to Subcaves 192 | -10/Materials | Entered Subcaves 197 | -10/Subcaves | Shifting Twisted Machinery released Sub. Power Source 200 | -10/Subcaves | Shifting Twisted Machinery released Sub. Laser 501 | -10/Subcaves | Lost 3 parts (1p1u1w) 585 | -10/Subcaves | Shifting Twisted Machinery released Battle Cannon 885 | -10/Subcaves | Shifting Twisted Machinery released Piercing Trap 1158 | -10/Subcaves | Learned 4 Materials zone layouts 1165 | -10/Subcaves | Core integrity fell below 50% 1252 | -10/Subcaves | Visited 4L-MR0's lab 1393 | -10/Subcaves | Ambushed by angry Subdweller bent on revenge 1583 | -10/Subcaves | Learned location of Zion (-6) 2842 | -10/Subcaves | Discovered new exit (range 9) 3037 | -10/Subcaves | Met a Zionite searching for "candidates" 3123 | -10/Subcaves | Learned Materials stockpile data 3323 | -10/Subcaves | Entered Materials 4011 | -8/Materials | Garrison activated, responded to threat 4017 | -8/Materials | Core integrity fell below 50% 4043 | -8/Materials | Discovered new exit (range 16) 4048 | -8/Materials | Entered Factory 4050 | -7/Factory | Lost 4 parts (1p2n1u) 4849 | -7/Factory | Garrison activated, responded to threat 5101 | -7/Factory | Discovered new exit (range 4) 5106 | -7/Factory | Entered another Factory area 5204 | -6/Factory | Lost 3 parts (1n2w) 5616 | -6/Factory | System corruption reached 10% 5754 | -6/Factory | Discovered new exit (range 5) 5781 | -6/Factory | Entered Lower Caves 5781 | -6/Lower Caves | Accompanied by 1 ally 5798 | -6/Lower Caves | Learned Factory trap positions 6173 | -6/Lower Caves | Discovered new exit (range 9) 6174 | -6/Lower Caves | Encountered a Warlord checkpoint 6175 | -6/Lower Caves | Learned 4 Factory zone layouts 6388 | -6/Lower Caves | Entered another Lower Caves area 6465 | -6/Lower Caves | Attracted the attention of an 0b10 checkpoint 6481 | -6/Lower Caves | Discovered new exit (range 14) 6485 | -6/Lower Caves | Entered Factory 6486 | -5/Factory | Identified exit to Extension 6487 | -5/Factory | Loaded intel: 110 trap records 6568 | -5/Factory | Entered Extension 6569 | -5/Extension | Lost 3 parts (1p1n1w) 6884 | -5/Extension | Spotted B-75 Beast 7217 | -5/Extension | Spotted B-75 Beast 7225 | -5/Extension | Discovered new exit (range 3) 7225 | -5/Extension | Identified exit to Factory 7226 | -5/Extension | Entered Factory 7256 | -4/Factory | Lost 3 parts (2n1u) 7860 | -4/Factory | Lost 4 parts (1p2n1w) 8051 | -4/Factory | Core integrity fell below 50% 8065 | -4/Factory | Lost 6 parts (2n1u3w) 8067 | -4/Factory | Discovered new exit (range 16) 8075 | -4/Factory | Entered Upper Caves 8250 | -4/Upper Caves | Discovered new exit (range 6) 8251 | -4/Upper Caves | Encountered a Warlord checkpoint 8380 | -4/Upper Caves | Entered another Upper Caves area 8383 | -4/Upper Caves | Discovered new exit (range 14) 8655 | -4/Upper Caves | Entered Research 8662 | -3/Research | Identified exit to DSF 8662 | -3/Research | Entered DSF 8662 | -3/DSF | Encountered a pitched battle between 0b10 and Warlord forces 8728 | -3/DSF | Spotted B-86 Titan 8738 | -3/DSF | Sterilization system engaged 8758 | -3/DSF | Ambient heat levels rising (+10) 8771 | -3/DSF | Discovered new exit (range 14) 8773 | -3/DSF | Ambient heat levels rising (+10) 8782 | -3/DSF | Entered Research 8979 | -2/Research | Spotted B-90 Cyclops 9051 | -2/Research | Took control of B-90 Cyclops 9081 | -2/Research | Lost 4 parts (1p2n1u) 9482 | -2/Research | Spotted B-90 Cyclops 9492 | -2/Research | Destroyed B-90 Cyclops 9513 | -2/Research | Lost 10 parts (1p2n6u1w) 9748 | -2/Research | Lost 3 parts (1n1u1w) 9783 | -2/Research | Core integrity fell below 50% 10204 | -2/Research | Discovered new exit (range 6) 10212 | -2/Research | Identified exit to Testing 10214 | -2/Research | Entered Testing 10649 | -2/Testing | Scanned by Researcher 10714 | -2/Testing | First assault squad dispatched 10724 | -2/Testing | Lost 3 parts (2u1w) 10807 | -2/Testing | Spotted PG-UFHDM2IVWS 10818 | -2/Testing | Core integrity fell below 20% 10828 | -2/Testing | Discovered new exit (range 6) 10835 | -2/Testing | Entered Access 10880 | -1/Access | Spotted B-99 Colossus 11036 | -1/Access | Identified exit to Command 11060 | -1/Access | Lost 3 parts (1n2w) 11126 | -1/Access | Search patrols dispatched 11140 | -1/Access | Lost 4 parts (1p2n1w) 11170 | -1/Access | Energy Cycler disabled 11272 | -1/Access | Lost 8 parts (1p5n1u1w) 11364 | -1/Access | Search patrols dispatched 11430 | -1/Access | System corruption reached 10% 11445 | -1/Access | Core integrity fell below 50% 11528 | -1/Access | Core integrity fell below 20% 11558 | -1/Access | Lost 14 parts (1p3n4u6w) 11613 | -1/Access | Search patrols dispatched 11664 | -1/Access | Destroyed by P-80 Master with Gamma Rifle Last Messages --------------- 11564_ System corrupted (+5). 11581_ YO=|A<,EMOCMI%JCDNLXI4 11585_ ALERT: Rogue bot located, Programmers report to Access Zone 9F. 11597_ System corrupted: Energy discharge (-24). 11613_ ALERT: Heightened foreign activity detected, multiple search patrols dispatched. 11615_ Took control of R-10 Processor. 11616_ System corrupted: Heat flow error (+252). 11617_ Overheating: Energy bleed (-24). 11621_ Acquired Gyrokinetic Inverter. 11657_ W-44 Eye sends out distress signal. 11658_ 3DCTO/VJFCTCG2:ON,,ZOQ>, 11659_ C-30 ARC bursts open, deploying its payload. 11659_ S-43 Plague unfolds itself. 11661_ Hpw. Tractor Beam destroyed. 11661_ Com. Wheel destroyed. 11661_ Slammed into W-44 Eye. 11662_ Destabilizing: Core damaged (-32). 11663_ Com. Wheel destroyed. 11663_ Slammed into W-44 Eye. Map ----- +----------------------------------------------------+ | ??????????????????????????????????????????# % | | ??????????????????????????????????????????# | | ???????????????????????????#####+########## % | | ?????????????????????????? | | ??????????????????????????? | | ?????????????????????????? | | ?????????????????????????? | | ????????????????????????? | | ????????????????????????? | | ????????????????????????? | | ???????????????########################+########## | | ???????????????# ! #??# #? | | ???????????????# #??# #? | | ???????????????# #??# """"" """"" #? | | ???????????????# """"" *#### """" ""R"" #? | | ???????????????# """"" + / """"" " " #? | | ???????????????# """"" #### """"" ?? | | ???????????????# """"" #??# """"" ??? | | ???????????????# """"" #??# ??? | | ???????????????# """"" [#??# ??? | | ??????????]????# ###################+?? | | ???????????????# ## #??????? | | ??????????#????# ## #??????? | | ??????##### ######+########### " #??????? | | ???? ps w ; """ == #??????? | | ???? s R # """ = #??????? | | ???? pps s # " ! #??????? | | ????? ss + #??????? | | ????? # #??????? | | ?????? # #??????? | | ?????? # #??????? | | ?????? ########## ###### # #??????? | | ?????????????????# #????# # #??????? | | ?????????????????# #????# ###+##########??=???? | | ?????????????????# #????# # * #???????*?? | | ?????????????????# #????# # #?????????? | | ?????????????????# ?????# # * #?????????? | | ????? ??????####+######+## # #?????????? | | ???? ?????# # #####+#####?????????? | | ???? #?????# # #?????????????? | | ??? ####### "" #+########????????????? | | """ # "" # ^ = #????????????? | | F" # S" # == #????????????? | | """ # = """ # == #????????????? | | "" + """ # #????????????? | | # """ # #????????????? | | ?# # #????????????? | | ????# # =#????????????? | | #??????# # #????????????? | | #??????# # #????????????? | +----------------------------------------------------+ Best States ------------- Heat Dissipation 148 Coolant Potential 100 Energy Generation 40 Energy Capacity 300 Matter Stores 300 Matter Capacity 300 Sight Range 22 Robot Scan Range 20 Terrain Scan Density 10 Jamming Range 16 Power Amplification 30 EM Shielding 3 Armor Coverage 2100 Resistance: KI 25 Resistance: EX 50 Resistance: EM 75 Resistance: I 50 Resistance: S 50 Resistance: P 50 Weapon Shielding 66 Weapon Cycling 25 Phase Shifting 15 Evasion (%) 70 Targeting Accuracy 8 Target Analysis 8 Recoil Reduction 4 Kinecelleration 40 Offensive Hacking 12 Defensive Hacking 12 Trap Extractor Capacity 8 Item Schematics ----------------- None Robot Schematics ------------------ None Fabricated ------------ Nothing Alien Tech Used ----------------- None Achievements -------------- None Challenges ------------ None Polymind | -11 -10 -10 -8 -7 -6 -6 -6 -5 -5 -4 -4 -4 -3 -3 -2 -2 -1 ---------- Run | Jun Mat Sub Mat Fac Fac Low Low Fac Ext Fac Upp Upp Res DSF Res Tes Acc Hosts 31 | . 1 2 3 3 2 . 1 . 4 2 1 . . . 3 1 8 Combat Hostiles 20 | . . 2 3 2 . . 1 . 1 1 . . . . 3 1 6 Allies 1 | . . . . . 1 . . . . . . . . . . . . Unique Host Classes 15 | . 1 2 2 2 1 . . . 1 1 1 . . . 3 1 . Average Host Suspicion 61 | . 100 22 74 78 93 38 54 77 80 84 43 3 1 35 89 80 95 Unsuspicious Activity 2092 | . . 411 13 446 365 20 7 . 163 2 15 . . 20 590 . 40 Returns to Shadow 3 | . . 1 . 1 . . . . 1 . . . . . . . . Fuzzy Dispatches 2 | . . . . . 1 . . . . . . . . . 1 . . Protomatter Created 2064 | . . 112 31 58 10 51 92 16 216 40 98 . . 778 350 41 171 Used 1327 | . 12 56 35 96 23 . 14 . 107 58 10 . . . 558 70 288 Decayed 343 | . . . . . . . 16 . 13 . 41 . . 182 77 . 14 Highest Spend 280 | . 12 33 23 51 16 . 14 . 74 53 10 . . . 280 70 67 Top 5 Hosts by Kills: B-90 Cyclops (-2/Research: 14) H-81 Overseer (-2/Research: 11) 8X-8J5(R) (-10/Subcaves: 9) Y-54 Guardian (-7/Factory: 8) H-88 Terminator (-2/Research: 7) Game ------ Seed AssaultBurstBlaster Manual? 0 Play Time 01:11:50 Cumulative 1403.7 hours Start 2023.08.18 @ 03:44:43 End 2023.08.18 @ 04:56:29 Sessions 1 Manual Loads 0 Difficulty Rogue Special Mode Winter2022/Polymind Game No. 993 Rogue 989 Adventurer 4 Explorer 0 Win Type - Total 166 Types 124/11/10/7/2/1/1/6/4 Lore% 96 Gallery% 98 Achievement% 98 Wizard Run 0 Options --------- ASCII 0 Keyboard 1 Movement Vi Keybinds 0 Fullscreen 0 Font 20/X11 Map View 76x50 Tactical HUD 1 Map Filters NONE Filters NONE Steam 1 RUN: 0ad30703-2641-4fad-9123-b3bb8f5c3b2b